fUSD/lending_fUSD_20240628
["ID","MTS","AMOUNT","RATE_DAILY","PERIOD"]
[330540232,1719561098768,-4108.34,0.0002,2]
[330540233,1719561098777,-500.0,0.0002,2]
[330540234,1719561098786,-577.58,0.0002,2]
[330540235,1719561098795,-1494.47,0.0002,2]
[330540236,1719561098804,-1434.26,0.0002,2]
[330540237,1719561098813,-1812.77,0.0002,2]
[330540238,1719561098822,-500.0,0.0002,2]
[330540239,1719561098831,-500.0,0.0002,2]
[330540240,1719561098841,-803.64,0.0002,2]
[330540241,1719561098854,-8612.7,0.0002,2]
[330540242,1719561098864,-500.0,0.0002,2]
[330540243,1719561098872,-500.0,0.0002,2]
[330540244,1719561098882,-2570.43,0.0002,2]
[330540245,1719561098891,-2233.3,0.0002,2]
[330540246,1719561098900,-564.9,0.0002,2]
[330540247,1719561098909,-500.0,0.0002,2]
[330540248,1719561098920,-7571.09,0.0002,2]
[330540249,1719561098931,-833.81,0.0002,2]
[330540250,1719561098940,-651.19,0.0002,2]
[330540251,1719561098949,-990.66,0.0002,2]
[330540252,1719561098958,-500.0,0.0002,2]
[330540253,1719561098967,-1393.07,0.0002,2]
[330540254,1719561098976,-500.0,0.0002,2]
[330540255,1719561098985,-500.0,0.0002,2]
[330540256,1719561098995,-795.17,0.0002,2]
[330540257,1719561099005,-1571.82,0.0002,2]
[330540258,1719561099015,-803.77,0.0002,2]
[330540259,1719561099024,-2442.19,0.0002,2]
[330540260,1719561099034,-500.0,0.0002,2]
[330540261,1719561099045,-500.0,0.0002,2]
[330540262,1719561099055,-500.0,0.0002,2]
[330540263,1719561099065,-500.0,0.0002,2]
[330540264,1719561099074,-500.0,0.0002,2]
[330540265,1719561099084,-1017.76,0.0002,2]
[330540266,1719561099094,-985.98,0.0002,2]
[330540267,1719561099103,-3900.49,0.0002,2]
[330540268,1719561099112,-623.56,0.0002,2]
[330540269,1719561099122,-500.0,0.0002,2]
[330540270,1719561099132,-510.44,0.0002,2]
[330540271,1719561099141,-3571.61,0.0002,2]
[330540272,1719561099151,-3626.35,0.0002,2]
[330540273,1719561099161,-974.54,0.0002,2]
[330540274,1719561099170,-673.35,0.0002,2]
[330540275,1719561099180,-631.56502993,0.0002,2]
[330540276,1719561099189,-500.0,0.0002,2]
[330540277,1719561099199,-500.0,0.0002,2]
[330540278,1719561099209,-914.91,0.0002,2]
[330540279,1719561099218,-1975.34,0.0002,2]
[330540280,1719561099228,-4977.96,0.0002,2]
[330540281,1719561099238,-500.0,0.0002,2]
[330540282,1719561099247,-668.22,0.0002,2]
[330540283,1719561099257,-4103.33,0.0002,2]
[330540284,1719561099267,-929.98,0.0002,2]
[330540285,1719561099277,-500.0,0.0002,2]
[330540286,1719561099287,-690.61,0.0002,2]
[330540287,1719561099297,-2114.11,0.0002,2]
[330540288,1719561099306,-619.69306988,0.0002,2]
[330540289,1719561099315,-1628.46,0.0002,2]
[330540290,1719561099325,-1444.66,0.0002,2]
[330540291,1719561099335,-933.49,0.0002,2]
[330540292,1719561099344,-2888.25,0.0002,2]
[330540293,1719561099353,-489.6952,0.0002,2]
[330540294,1719561099362,-500.0,0.0002,2]
[330540295,1719561099372,-1270.72,0.0002,2]
[330540296,1719561099382,-3537.73,0.0002,2]
[330540297,1719561099391,-1988.26,0.0002,2]
[330540298,1719561099400,-500.0,0.0002,2]
[330540299,1719561099410,-646.8,0.0002,2]
[330540300,1719561099419,-3537.83,0.0002,2]
[330540301,1719561099429,-1016.96,0.0002,2]
[330540302,1719561099438,-500.0,0.0002,2]
[330540303,1719561099448,-500.0,0.0002,2]
[330540304,1719561099459,-4400.98,0.0002,2]
[330540305,1719561099469,-500.0,0.0002,2]
[330540306,1719561099479,-768.32,0.0002,2]
[330540307,1719561099489,-6545.79,0.0002,2]
[330540308,1719561099502,-588.73,0.0002,2]
[330540309,1719561099512,-1070.33,0.0002,2]
[330540310,1719561099520,-743.46,0.0002,2]
[330540311,1719561099531,-892.56,0.0002,2]
[330540312,1719561099540,-1231.54,0.0002,2]
[330540313,1719561099550,-500.0,0.0002,2]
[330540314,1719561099560,-895.8,0.0002,2]
[330540315,1719561099570,-385.93526971,0.0002,2]
[330540316,1719561099580,-500.0,0.0002,2]
[330540317,1719561099589,-2097.83,0.0002,2]
[330540318,1719561099599,-500.0,0.0002,2]
[330540319,1719561099609,-500.0,0.0002,2]
[330540320,1719561099619,-500.0,0.0002,2]
[330540321,1719561099628,-5569.46064165,0.0002,2]
[330540322,1719561099637,-500.0,0.0002,2]
[330540323,1719561099647,-3334.25,0.0002,2]
[330540324,1719561099657,-3150.03,0.0002,2]
[330540325,1719561099668,-500.0,0.0002,2]
[330540326,1719561099677,-500.0,0.0002,2]
[330540327,1719561099687,-417.77949378,0.0002,2]
[330540328,1719561099697,-610.61,0.0002,2]
[330540329,1719561099707,-592.92181606,0.0002,2]
[330540330,1719561099717,-500.0,0.0002,2]
[330540331,1719561099727,-500.0,0.0002,2]
[330540332,1719561099736,-1099.72,0.0002,2]
[330540333,1719561099751,-500.0,0.0002,2]
[330540334,1719561099761,-1552.28,0.0002,2]
[330540335,1719561099771,-735.24,0.0002,2]
[330540336,1719561099783,-500.0,0.0002,2]
[330540337,1719561099793,-1827.69,0.0002,2]
[330540338,1719561099803,-2422.64,0.0002,2]
[330540339,1719561099812,-3657.77,0.0002,2]
[330540340,1719561099822,-500.0,0.0002,2]
[330540341,1719561099832,-500.0,0.0002,2]
[330540342,1719561099847,-14987.84,0.0002,2]
[330540343,1719561099856,-2088.49,0.0002,2]
[330540344,1719561099866,-500.0,0.0002,2]
[330540345,1719561099876,-561.79,0.0002,2]
[330540346,1719561099887,-890.94,0.0002,2]
[330540347,1719561099896,-500.0,0.0002,2]
[330540348,1719561099906,-1894.39,0.0002,2]
[330540349,1719561099915,-1243.28,0.0002,2]
[330540350,1719561099926,-500.0,0.0002,2]
[330540351,1719561099935,-2029.23,0.0002,2]
[330540352,1719561099945,-1128.27,0.0002,2]
[330540353,1719561099954,-500.0,0.0002,2]
[330540354,1719561099964,-604.19,0.0002,2]
[330540355,1719561099974,-2561.23,0.0002,2]
[330540356,1719561099983,-2467.25,0.0002,2]
[330540357,1719561099993,-500.0,0.0002,2]
[330540358,1719561100004,-1302.81,0.0002,2]
[330540359,1719561100014,-500.0,0.0002,2]
[330540360,1719561100023,-500.0,0.0002,2]
[330540361,1719561100033,-580.74,0.0002,2]
[330540362,1719561100043,-2378.96,0.0002,2]
[330540363,1719561100053,-519.05,0.0002,2]
[330540364,1719561100063,-696.42,0.0002,2]
[330540365,1719561100073,-1077.61,0.0002,2]
[330540366,1719561100082,-3444.9,0.0002,2]
[330540367,1719561100092,-500.0,0.0002,2]
[330540368,1719561100101,-1810.22,0.0002,2]
[330540369,1719561100111,-878.91,0.0002,2]
[330540370,1719561100120,-500.0,0.0002,2]
[330540371,1719561100129,-5919.42,0.0002,2]
[330540372,1719561100138,-931.76,0.0002,2]
[330540373,1719561100148,-500.0,0.0002,2]
[330540374,1719561100157,-1072.86,0.0002,2]
[330540375,1719561100166,-1058.14,0.0002,2]
[330540376,1719561100175,-500.0,0.0002,2]
[330540377,1719561100184,-1191.34,0.0002,2]
[330540378,1719561100194,-500.0,0.0002,2]
[330540379,1719561100203,-500.0,0.0002,2]
[330540380,1719561100212,-12606.71,0.0002,2]
[330540381,1719561100222,-3215.98,0.0002,2]
[330540382,1719561100231,-1586.1,0.0002,2]
[330540383,1719561100241,-500.0,0.0002,2]
[330540384,1719561100251,-687.47,0.0002,2]
[330540385,1719561100260,-500.0,0.0002,2]
[330540386,1719561100269,-500.0,0.0002,2]
[330540387,1719561100279,-1219.48,0.0002,2]
[330540388,1719561100289,-610.96380372,0.0002,2]
[330540389,1719561100297,-836.18,0.0002,2]
[330540390,1719561100307,-625.82,0.0002,2]
[330540391,1719561100316,-1319.12,0.0002,2]
[330540392,1719561100326,-1059.97,0.0002,2]
[330540393,1719561100335,-1041.16,0.0002,2]
[330540394,1719561100344,-500.0,0.0002,2]
[330540395,1719561100353,-500.0,0.0002,2]
[330540396,1719561100363,-1776.67,0.0002,2]
[330540397,1719561100372,-500.0,0.0002,2]
[330540398,1719561100382,-500.0,0.0002,2]
[330540399,1719561100391,-500.0,0.0002,2]
[330540400,1719561100400,-833.16,0.0002,2]
[330540401,1719561100410,-852.24,0.0002,2]
[330540402,1719561100419,-500.0,0.0002,2]
[330540403,1719561100428,-832.89,0.0002,2]
[330540404,1719561100438,-667.48,0.0002,2]
[330540405,1719561100448,-500.0,0.0002,2]
[330540406,1719561100457,-500.0,0.0002,2]
[330540407,1719561100467,-1285.7,0.0002,2]
[330540408,1719561100476,-500.0,0.0002,2]
[330540409,1719561100486,-1976.95,0.0002,2]
[330540410,1719561100496,-500.0,0.0002,2]
[330540411,1719561100506,-1115.81,0.0002,2]
[330540412,1719561100516,-620.27,0.0002,2]
[330540413,1719561100527,-500.0,0.0002,2]
[330540414,1719561100537,-500.0,0.0002,2]
[330540415,1719561100546,-1542.91,0.0002,2]
[330540416,1719561100557,-500.0,0.0002,2]
[330540417,1719561100567,-1980.39,0.0002,2]
[330540418,1719561100577,-1594.11,0.0002,2]
[330540419,1719561100587,-500.0,0.0002,2]
[330540420,1719561100598,-500.0,0.0002,2]
[330540421,1719561100607,-194.76204525,0.0002,2]
[330540422,1719561100617,-552.21396862,0.0002,2]
[330540423,1719561100627,-1240.01,0.0002,2]
[330540424,1719561100638,-1834.65,0.0002,2]
[330540425,1719561100648,-1531.63,0.0002,2]
[330540426,1719561100657,-893.21,0.0002,2]
[330540427,1719561100667,-532.59,0.0002,2]
[330540428,1719561100677,-4339.37,0.0002,2]
[330540429,1719561100686,-1176.17,0.0002,2]
[330540430,1719561100697,-1096.31,0.0002,2]
[330540431,1719561100707,-500.0,0.0002,2]
[330540432,1719561100717,-500.0,0.0002,2]
[330540433,1719561100727,-500.0,0.0002,2]
[330540434,1719561100738,-791.78,0.0002,2]
[330540435,1719561100750,-500.0,0.0002,2]
[330540436,1719561100759,-500.0,0.0002,2]
[330540437,1719561100768,-1639.09,0.0002,2]
[330540438,1719561100778,-500.0,0.0002,2]
[330540439,1719561100788,-500.0,0.0002,2]
[330540440,1719561100797,-1124.86,0.0002,2]
[330540441,1719561100812,-1291.49,0.0002,2]
[330540442,1719561100821,-504.91,0.0002,2]
[330540443,1719561100830,-588.38,0.0002,2]
[330540444,1719561100841,-500.0,0.0002,2]
[330540445,1719561100855,-1924.82,0.0002,2]
[330540446,1719561100864,-500.0,0.0002,2]
[330540447,1719561100873,-1061.55,0.0002,2]
[330540448,1719561100883,-500.0,0.0002,2]
[330540449,1719561100893,-1465.35,0.0002,2]
[330540450,1719561100902,-500.0,0.0002,2]
[330540451,1719561100912,-2089.57,0.0002,2]
[330540452,1719561100923,-500.0,0.0002,2]
[330540453,1719561100933,-151.0,0.0002,2]
[330540454,1719561100943,-500.0,0.0002,2]
[330540455,1719561100952,-734.27,0.0002,2]
[330540456,1719561100962,-500.0,0.0002,2]
[330540457,1719561100971,-275.97895345,0.0002,2]
[330540458,1719561100981,-500.0,0.0002,2]
[330540459,1719561100991,-948.23,0.0002,2]
[330540460,1719561101002,-3576.87,0.0002,2]
[330540461,1719561101012,-500.0,0.0002,2]
[330540462,1719561101022,-3780.4,0.0002,2]
[330540463,1719561101032,-500.0,0.0002,2]
[330540464,1719561101044,-500.0,0.0002,2]
[330540465,1719561101054,-3935.43,0.0002,2]
[330540466,1719561101064,-500.0,0.0002,2]
[330540467,1719561101074,-500.0,0.0002,2]
[330540468,1719561101084,-500.0,0.0002,2]
[330540469,1719561101093,-770.26,0.0002,2]
[330540470,1719561101103,-500.0,0.0002,2]
[330540471,1719561101114,-946.83,0.0002,2]
[330540472,1719561101123,-500.0,0.0002,2]
[330540473,1719561101133,-500.0,0.0002,2]
[330540474,1719561101143,-950.23,0.0002,2]
[330540475,1719561101153,-4503.97,0.0002,2]
[330540476,1719561101162,-500.0,0.0002,2]
[330540477,1719561101172,-1446.14,0.0002,2]
[330540478,1719561101182,-2365.29,0.0002,2]
[330540479,1719561101192,-500.0,0.0002,2]
[330540480,1719561101202,-1659.75,0.0002,2]
[330540481,1719561101211,-500.0,0.0002,2]
[330540482,1719561101221,-500.0,0.0002,2]
[330540483,1719561101230,-500.0,0.0002,2]
[330540484,1719561101239,-3311.36,0.0002,2]
[330540485,1719561101251,-1322.58,0.0002,2]
[330540486,1719561101259,-1914.45,0.0002,2]
[330540487,1719561101268,-500.0,0.0002,2]
[330540488,1719561101277,-500.0,0.0002,2]
[330540489,1719561101287,-500.0,0.0002,2]
[330540490,1719561101296,-783.88,0.0002,2]
[330540491,1719561101306,-500.0,0.0002,2]
[330540492,1719561101315,-500.0,0.0002,2]
[330540493,1719561101324,-3498.8,0.0002,2]
[330540494,1719561101333,-612.16,0.0002,2]
[330540495,1719561101343,-500.0,0.0002,2]
[330540496,1719561101352,-1962.72,0.0002,2]
[330540497,1719561101362,-500.0,0.0002,2]
[330540498,1719561101371,-500.0,0.0002,2]
[330540499,1719561101381,-500.0,0.0002,2]
[330540500,1719561101390,-1641.9,0.0002,2]
[330540501,1719561101399,-500.0,0.0002,2]
[330540502,1719561101409,-500.0,0.0002,2]
[330540503,1719561101418,-685.98,0.0002,2]
[330540504,1719561101428,-637.51,0.0002,2]
[330540505,1719561101437,-3117.56,0.0002,2]
[330540506,1719561101447,-1141.3,0.0002,2]
[330540507,1719561101456,-500.0,0.0002,2]
[330540508,1719561101466,-3602.08,0.0002,2]
[330540509,1719561101476,-3867.01,0.0002,2]
[330540510,1719561101486,-4395.4,0.0002,2]
[330540511,1719561101496,-8127.46,0.0002,2]
[330540512,1719561101506,-3970.07,0.0002,2]
[330540513,1719561101517,-500.0,0.0002,2]
[330540514,1719561101526,-1264.09,0.0002,2]
[330540515,1719561101536,-500.0,0.0002,2]
[330540516,1719561101546,-2447.28,0.0002,2]
[330540517,1719561101556,-500.0,0.0002,2]
[330540518,1719561101565,-500.0,0.0002,2]
[330540519,1719561101575,-500.0,0.0002,2]
[330540520,1719561101585,-764.6,0.0002,2]
[330540521,1719561101594,-2955.61,0.0002,2]
[330540522,1719561101604,-1319.29,0.0002,2]
[330540523,1719561101614,-500.0,0.0002,2]
[330540524,1719561101623,-2004.62,0.0002,2]
[330540525,1719561101633,-2128.6,0.0002,2]
[330540526,1719561101643,-964.57,0.0002,2]
[330540527,1719561101652,-543.13,0.0002,2]
[330540528,1719561101662,-500.0,0.0002,2]
[330540529,1719561101671,-500.0,0.0002,2]
[330540530,1719561101681,-5636.27,0.0002,2]
[330540531,1719561101690,-4918.69,0.0002,2]
[330540532,1719561101700,-4066.1,0.0002,2]
[330540533,1719561101709,-664.5,0.0002,2]
[330540534,1719561101719,-500.0,0.0002,2]
[330540535,1719561101728,-4196.26,0.0002,2]
[330540536,1719561101738,-2426.91,0.0002,2]
[330540537,1719561101749,-500.0,0.0002,2]
[330540538,1719561101758,-571.57,0.0002,2]
[330540539,1719561101768,-500.0,0.0002,2]
[330540540,1719561101777,-500.0,0.0002,2]
[330540541,1719561101787,-619.41,0.0002,2]
[330540542,1719561101796,-1310.02,0.0002,2]
[330540543,1719561101806,-1996.62,0.0002,2]
[330540544,1719561101816,-3529.65,0.0002,2]
[330540545,1719561101825,-790.68,0.0002,2]
[330540546,1719561101835,-500.0,0.0002,2]
[330540547,1719561101846,-803.47,0.0002,2]
[330540548,1719561101857,-1259.18,0.0002,2]
[330540549,1719561101866,-500.0,0.0002,2]
[330540550,1719561101875,-863.97,0.0002,2]
[330540551,1719561101886,-3541.7,0.0002,2]
[330540552,1719561101896,-530.3,0.0002,2]
[330540553,1719561101906,-676.52,0.0002,2]
[330540554,1719561101917,-7586.47,0.0002,2]
[330540555,1719561101931,-500.0,0.0002,2]
[330540556,1719561101941,-731.62,0.0002,2]
[330540557,1719561101951,-500.0,0.0002,2]
[330540558,1719561101961,-151.38938733,0.0002,2]
[330540559,1719561101970,-1475.96,0.0002,2]
[330540560,1719561101979,-500.0,0.0002,2]
[330540561,1719561101988,-955.45,0.0002,2]
[330540562,1719561101998,-1270.09,0.0002,2]
[330540563,1719561102007,-1229.77,0.0002,2]
[330540564,1719561102016,-500.0,0.0002,2]
[330540565,1719561102025,-1393.57,0.0002,2]
[330540566,1719561102035,-2329.0,0.0002,2]
[330540567,1719561102046,-773.16,0.0002,2]
[330540568,1719561102056,-500.0,0.0002,2]
[330540569,1719561102066,-986.15,0.0002,2]
[330540570,1719561102076,-5063.06,0.0002,2]
[330540571,1719561102086,-1485.78,0.0002,2]
[330540572,1719561102096,-500.0,0.0002,2]
[330540573,1719561102106,-1707.42,0.0002,2]
[330540574,1719561102116,-500.0,0.0002,2]
[330540575,1719561102125,-2012.41,0.0002,2]
[330540576,1719561102135,-768.85,0.0002,2]
[330540577,1719561102145,-921.17,0.0002,2]
[330540578,1719561102154,-500.0,0.0002,2]
[330540579,1719561102164,-2449.33,0.0002,2]
[330540580,1719561102173,-2037.45,0.0002,2]
[330540581,1719561102182,-2900.72,0.0002,2]
[330540582,1719561102192,-500.0,0.0002,2]
[330540583,1719561102202,-1779.04,0.0002,2]
[330540584,1719561102212,-500.0,0.0002,2]
[330540585,1719561102222,-9301.47,0.0002,2]
[330540586,1719561102232,-1017.79,0.0002,2]
[330540587,1719561102241,-526.59,0.0002,2]
[330540588,1719561102252,-589.57201623,0.0002,2]
[330540589,1719561102454,-500.0,0.0002,2]
[330540590,1719561102475,-663.42,0.0002,2]
[330540591,1719561102484,-674.65,0.0002,2]
[330540592,1719561102494,-500.0,0.0002,2]
[330540593,1719561102505,-1420.13,0.0002,2]
[330540594,1719561102514,-500.0,0.0002,2]
[330540595,1719561102524,-2537.99,0.0002,2]
[330540596,1719561102533,-3320.06,0.0002,2]
[330540597,1719561102543,-1037.85,0.0002,2]
[330540598,1719561102555,-500.0,0.0002,2]
[330540599,1719561102564,-3319.78,0.0002,2]
[330540600,1719561102574,-500.0,0.0002,2]
[330540601,1719561102584,-634.63,0.0002,2]
[330540602,1719561102594,-500.0,0.0002,2]
[330540603,1719561102604,-56773.66,0.0002,2]
[330540604,1719561102614,-555.58,0.0002,2]
[330540605,1719561102625,-1092.89,0.0002,2]
[330540606,1719561102636,-153.584461,0.0002,2]
[330540607,1719561102646,-500.0,0.0002,2]
[330540608,1719561102656,-625.07,0.0002,2]
[330540609,1719561102666,-510.63,0.0002,2]
[330540610,1719561102676,-2200.88,0.0002,2]
[330540611,1719561102685,-941.38,0.0002,2]
[330540612,1719561102695,-2030.64,0.0002,2]
[330540613,1719561102705,-500.0,0.0002,2]
[330540614,1719561102715,-670.5,0.0002,2]
[330540615,1719561102725,-680.1,0.0002,2]
[330540616,1719561102735,-500.0,0.0002,2]
[330540617,1719561102746,-3883.66,0.0002,2]
[330540618,1719561102759,-1305.67,0.0002,2]
[330540619,1719561102771,-916.14,0.0002,2]
[330540620,1719561102782,-608.88,0.0002,2]
[330540621,1719561102792,-912.19,0.0002,2]
[330540622,1719561102802,-2094.61,0.0002,2]
[330540623,1719561102813,-624.72,0.0002,2]
[330540624,1719561102822,-500.0,0.0002,2]
[330540625,1719561102832,-304.38,0.0002,2]
[330540626,1719561102848,-357.47,0.0002,2]
[330540627,1719561102858,-500.0,0.0002,2]
[330540628,1719561102868,-575.25,0.0002,2]
[330540629,1719561102879,-500.0,0.0002,2]
[330540630,1719561102888,-2077.02,0.0002,2]
[330540631,1719561102898,-1750.92,0.0002,2]
[330540632,1719561102907,-500.0,0.0002,2]
[330540633,1719561102917,-500.0,0.0002,2]
[330540634,1719561102930,-1644.79,0.0002,2]
[330540635,1719561102940,-586.86,0.0002,2]
[330540636,1719561102950,-2240.25,0.0002,2]
[330540637,1719561102959,-500.0,0.0002,2]
[330540638,1719561102969,-785.73,0.0002,2]
[330540639,1719561102978,-3442.26,0.0002,2]
[330540640,1719561102988,-1783.03,0.0002,2]
[330540641,1719561103002,-2119.76,0.0002,2]
[330540642,1719561103011,-3279.62,0.0002,2]
[330540643,1719561103021,-3820.4,0.0002,2]
[330540644,1719561103030,-500.0,0.0002,2]
[330540645,1719561103040,-1177.19,0.0002,2]
[330540646,1719561103050,-2812.36,0.0002,2]
[330540647,1719561103062,-500.0,0.0002,2]
[330540648,1719561103072,-500.0,0.0002,2]
[330540649,1719561103081,-500.0,0.0002,2]
[330540650,1719561103092,-500.0,0.0002,2]
[330540651,1719561103101,-500.0,0.0002,2]
[330540652,1719561103111,-1875.87,0.0002,2]
[330540653,1719561103122,-751.3,0.0002,2]
[330540654,1719561103132,-5691.14,0.0002,2]
[330540655,1719561103142,-500.0,0.0002,2]
[330540656,1719561103151,-500.0,0.0002,2]
[330540657,1719561103160,-2181.6,0.0002,2]
[330540658,1719561103170,-500.0,0.0002,2]
[330540659,1719561103179,-4551.03,0.0002,2]
[330540660,1719561103189,-1185.76,0.0002,2]
[330540661,1719561103198,-500.0,0.0002,2]
[330540662,1719561103208,-500.0,0.0002,2]
[330540663,1719561103217,-500.0,0.0002,2]
[330540664,1719561103227,-500.0,0.0002,2]
[330540665,1719561103236,-500.0,0.0002,2]
[330540666,1719561103247,-500.0,0.0002,2]
[330540667,1719561103256,-918.65,0.0002,2]
[330540668,1719561103266,-3480.66,0.0002,2]
[330540669,1719561103276,-500.0,0.0002,2]
[330540670,1719561103286,-710.75,0.0002,2]
[330540671,1719561103295,-2776.49,0.0002,2]
[330540672,1719561103306,-1117.03,0.0002,2]
[330540673,1719561103316,-500.0,0.0002,2]
[330540674,1719561103326,-5538.45,0.0002,2]
[330540675,1719561103335,-500.0,0.0002,2]
[330540676,1719561103345,-1555.15,0.0002,2]
[330540677,1719561103355,-5613.75,0.0002,2]
[330540678,1719561103365,-3058.96,0.0002,2]
[330540679,1719561103375,-500.0,0.0002,2]
[330540680,1719561103384,-500.0,0.0002,2]
[330540681,1719561103393,-820.14,0.0002,2]
[330540682,1719561103403,-500.0,0.0002,2]
[330540683,1719561103413,-500.0,0.0002,2]
[330540684,1719561103423,-825.28,0.0002,2]
[330540685,1719561103432,-170.0,0.0002,2]
[330540686,1719561103442,-515.83,0.0002,2]
[330540687,1719561103452,-500.0,0.0002,2]
[330540688,1719561103462,-841.57,0.0002,2]
[330540689,1719561103471,-4616.67,0.0002,2]
[330540690,1719561103480,-500.0,0.0002,2]
[330540691,1719561103490,-500.0,0.0002,2]
[330540692,1719561103502,-266.39697,0.0002,2]
[330540693,1719561103513,-592.24,0.0002,2]
[330540694,1719561103523,-500.0,0.0002,2]
[330540695,1719561103532,-10383.18,0.0002,2]
[330540696,1719561103542,-1039.73,0.0002,2]
[330540697,1719561103552,-500.0,0.0002,2]
[330540698,1719561103561,-1439.93,0.0002,2]
[330540699,1719561103571,-887.72,0.0002,2]
[330540700,1719561103581,-6117.5,0.0002,2]
[330540701,1719561103592,-1863.96,0.0002,2]
[330540702,1719561103602,-3531.61,0.0002,2]
[330540703,1719561103612,-1143.1,0.0002,2]
[330540704,1719561103622,-1362.09,0.0002,2]
[330540705,1719561103631,-500.0,0.0002,2]
[330540706,1719561103641,-500.0,0.0002,2]
[330540707,1719561103651,-500.0,0.0002,2]
[330540708,1719561103660,-23179.74,0.0002,2]
[330540709,1719561103670,-3216.0,0.0002,2]
[330540710,1719561103680,-500.0,0.0002,2]
[330540711,1719561103690,-16559.11,0.0002,2]
[330540712,1719561103700,-327.42352663,0.0002,2]
[330540713,1719561103710,-1155.64,0.0002,2]
[330540714,1719561103719,-3529.87,0.0002,2]
[330540715,1719561103730,-3804.04,0.0002,2]
[330540716,1719561103739,-850.77,0.0002,2]
[330540717,1719561103751,-500.0,0.0002,2]
[330540718,1719561103761,-500.0,0.0002,2]
[330540719,1719561103770,-1207.75,0.0002,2]
[330540720,1719561103779,-500.0,0.0002,2]
[330540721,1719561103789,-500.0,0.0002,2]
[330540722,1719561103798,-151.0,0.0002,2]
[330540723,1719561103808,-932.07,0.0002,2]
[330540724,1719561103820,-1059.78,0.0002,2]
[330540725,1719561103830,-2084.87,0.0002,2]
[330540726,1719561103840,-500.0,0.0002,2]
[330540727,1719561103854,-2749.65,0.0002,2]
[330540728,1719561103864,-12501.51,0.0002,2]
[330540729,1719561103874,-547.83,0.0002,2]
[330540730,1719561103885,-736.84,0.0002,2]
[330540731,1719561103895,-1431.47,0.0002,2]